Cogmind - Beta 11 *** ADVENTURER MODE // 2022.03.27 @ 15:55:13 // AFD2020/Player2 Player: Sn@43 Result: Destroyed by D-53 Grenadier with Mini Grenade Launcher Performance ------------- Evolutions (0) 0 Regions Visited (2) 400 Robots Destroyed (17) 85 Value Destroyed (254) 254 Prototype IDs (3) 60 Alien Tech Used (0) 0 Bonus (75) 75 TOTAL SCORE: 874 Bonus ------- Follower Combat Kills 75 Cogmind --------- Core Integrity 0/250 Matter 297/300 Energy 250/250 System Corruption 0% Temperature Cool (0) Movement Rolling (95) Ox1 Location -10/Mines Parts ------- > --- POWER (1) -------- Ion Engine > --- PROPULSION (2) --- Wheel Wheel > --- UTILITY (2) ------ Large Storage Unit Visual Processing Unit > --- WEAPON (2) ------- Assault Rifle > --- INVENTORY (15) --- Aluminum Leg Aluminum Leg Wheel Compact Wheel Compact Wheel Medium Storage Unit Large Storage Unit Medium Laser Assault Rifle Light Assault Rifle Light Assault Rifle Light Cannon Grenade Launcher Peak State ------------ > --- POWER ------------ Light Ion Engine > --- PROPULSION ------- Wheel Wheel > --- UTILITY ---------- Improved Heat Sink Large Storage Unit > --- WEAPON ----------- Assault Rifle Light Assault Rifle > --- INVENTORY -------- Aluminum Leg Aluminum Leg Medium Storage Unit Large Storage Unit Light Cannon Grenade Launcher [Rating: 9] Favorites ----------- Power Light Ion Engine Engine Light Ion Engine Propulsion Wheel Wheel Wheel Utility Large Storage Unit Device Improved Heat Sink Storage Large Storage Unit Processor Visual Processing Unit Weapon Assault Rifle Ballistic Gun Assault Rifle Build | -11 -10 -10 ------- Run | Scr Mat Min Slots Evolved . | . . . Power . | . . . Propulsion . | . . . Utility . | . . . Weapon . | . . . Parts Attached 18 | 8 7 3 Power 2 | 1 1 . Engine 2 | 1 1 . Core . | . . . Reactor . | . . . Propulsion 6 | 2 2 2 Treads . | . . . Leg . | . . . Wheel 6 | 2 2 2 Hover . | . . . Flight . | . . . Utility 6 | 3 3 . Device 2 | 1 1 . Storage 3 | 2 1 . Processor 1 | . 1 . Hackware . | . . . Protection . | . . . Artifact . | . . . Weapon 4 | 2 1 1 Energy Gun . | . . . Energy Cannon . | . . . Ballistic Gun 4 | 2 1 1 Ballistic Cannon . | . . . Launcher . | . . . Special Weapon . | . . . Impact Weapon . | . . . Slashing Weapon . | . . . Piercing Weapon . | . . . Special Melee Weapon . | . . . Unidentified Prototypes . | . . . Parts Lost 1 | . . 1 Power . | . . . Propulsion . | . . . Utility . | . . . Weapon 1 | . . 1 Highest Loss Streak 1 | . . 1 To Critical Strikes . | . . . Average Slot Usage (%) 91 | . 89 99 Engine 14 | . 14 14 Wheel 28 | . 28 28 Device 3 | . 4 . Storage 14 | . 14 14 Processor 5 | . 3 14 Ballistic Gun 24 | . 23 27 Naked Turns . | . . . Heaviest Build 30 | 16 30 28 Greatest Support 32 | 32 32 20 Greatest Overweight (x) 1 | . 1 1 Average Overweight (x) . | . . 1 Largest Inventory Capacity 15 | 8 15 15 Average Capacity 14 | 7 14 15 Most Carried 15 | 8 9 15 Average Carried 7 | 5 7 10 Final Capacity 15 | 8 15 15 Final Carried 13 | 8 9 13 Class Distribution -------------------- 64% | Scavenger-Mutant 35% | Mutant Dominant Class ---------------- Scavenger-Mutant | -10/Materials Scavenger-Mutant | -10/Mines Resources | -11 -10 -10 ----------- Run | Scr Mat Min Matter Collected 517 | 292 126 99 Remotely . | . . . Salvage Created 630 | 98 299 233 Parts 39 | 5 15 19 Haulers Intercepted . | . . . Recyclers Shooed 1 | 1 . . Parts Field Recycled . | . . . Retrieved Matter . | . . . Parts Self-Destructed . | . . . Prevented . | . . . Kills | -11 -10 -10 ------- Run | Scr Mat Min Combat Hostiles Destroyed 11 | . 7 4 Guns 11 | . 7 4 Classes Destroyed 5 | 2 2 1 Tunneler 3 | 1 . 2 Recycler 4 | 1 1 2 Swarmer 6 | . 3 3 Grunt 4 | . 4 . Assembled 1 | . . 1 Best Kill Streak 5 | 2 5 4 Combat Bots Only 4 | . 4 3 Max Kills in Single Turn 1 | 1 1 1 Gunslinging . | . . . Exploded . | . . . Melee . | . . . Uniques/NPCs Destroyed . | . . . Combat | -11 -10 -10 -------- Run | Scr Mat Min Damage Taken 468 | . 203 265 Core 130 | . 54 76 Absorbed by Shields . | . . . Core Remaining (%) 100 | 100 . . Volleys Fired 39 | 3 18 18 Largest 2 | 2 2 2 Hottest 40 | 40 40 40 Shots Fired 70 | 6 29 35 Gun 70 | 6 29 35 Cannon . | . . . Launcher . | . . . Special . | . . . Kinetic 70 | 6 29 35 Thermal . | . . . Explosive . | . . . Electromagnetic . | . . . Robot Hit Streak 17 | 5 17 17 Robot Miss Streak 1 | . 1 1 Penetration Max . | . . . Secondary Targets 2 | . 1 1 Max Gunslinging Chain 1 | . 1 1 Shots Hit Robots 56 | 5 24 27 Core Hits 31 | 3 12 16 Critical Kills . | . . . Critical Parts Destroyed . | . . . Critical Strikes . | . . . Melee Attacks . | . . . Impact . | . . . Slashing . | . . . Piercing . | . . . Sneak Attacks . | . . . Combat Hostiles . | . . . Follow-up Attacks . | . . . Damage Inflicted 627 | 51 285 291 Guns 603 | 51 261 291 Cannons . | . . . Explosions . | . . . Melee . | . . . Ramming 24 | . 24 . Kinetic 603 | 51 261 291 Thermal . | . . . Explosive . | . . . Electromagnetic . | . . . Impact . | . . . Slashing . | . . . Piercing . | . . . Highest Corruption . | . . . Average Corruption . | . . . Corruption Purged . | . . . Corruption Blocked . | . . . Overload Shots . | . . . Overflow Damage . | . . . Projectiles . | . . . Explosions . | . . . Melee . | . . . Knockbacks . | . . . Impact . | . . . Kinetic . | . . . Secondary . | . . . Self-Inflicted Damage 12 | . 12 . Shots . | . . . Rammed 1 | . 1 . Targets Rammed 1 | . 1 . Kicked . | . . . Crushed . | . . . Highest Temperature . | . . . Average Temperature . | . . . Received Heat Transfer 72 | . 72 . Siege Activations . | . . . Robots Corrupted . | . . . Combat Hostiles . | . . . Parts Fried . | . . . Impact Corruptions . | . . . Robots Melted . | . . . Combat Hostiles . | . . . Parts Melted . | . . . Heat Transferred . | . . . Parts Sabotaged . | . . . Parts Stolen . | . . . Parts Stripped . | . . . Power Chain Reactions . | . . . Missiles Intercepted . | . . . Alert | -11 -10 -10 ------- Run | Scr Mat Min Peak Influence 262 | 10 262 106 Initial 5 | . 5 4 Average 45 | 3 44 61 Maximum Alert Level 1 | . 1 . Low Security (%) 96 | 100 94 100 Level 1 3 | . 5 . Level 2 . | . . . Level 3 . | . . . Level 4 . | . . . Level 5 . | . . . High Security . | . . . Max Security . | . . . Squads Dispatched 2 | . 2 . Investigation 2 | . 2 . Extermination . | . . . Reinforcement . | . . . Assault . | . . . Garrison . | . . . Intercept . | . . . Searches Triggered . | . . . Construction Impeded . | . . . Haulers Reinforced . | . . . Active Scanning Responses . | . . . Cargo Convoy Interrupts . | . . . Stealth | -11 -10 -10 --------- Run | Scr Mat Min Distress Signals 2 | . 2 . Communications Jammed . | . . . Distress Signals . | . . . Times Spotted 31 | . 13 18 Peak Tracking Total 14 | . 6 14 Tactical Retreats 1 | . 1 . Traps | -11 -10 -10 ------- Run | Scr Mat Min Traps Triggered 2 | . 2 . Indirectly . | . . . Trap Hack Attempts . | . . . Triggered . | . . . Disarmed . | . . . Reprogrammed . | . . . Reused . | . . . Traps Extracted . | . . . Installed . | . . . Triggered . | . . . Machines | -11 -10 -10 ---------- Run | Scr Mat Min Machines Disabled . | . . . Max in Single Turn . | . . . Machines Sabotaged . | . . . Garrisons Compromised . | . . . Overloaded Fab Kills . | . . . Hacking | -11 -10 -10 --------- Run | Scr Mat Min Machines Accessed 9 | . 9 . Terminals 7 | . 7 . Fabricators . | . . . Repair Stations . | . . . Recycling Units 2 | . 2 . Scanalyzers . | . . . Garrison Access . | . . . Total Hacks 27 | . 27 . Successful 17 | . 17 . Failed 10 | . 10 . Catastrophic . | . . . Database Lockouts . | . . . Manual 25 | . 25 . Terminals 23 | . 23 . Fabricators . | . . . Repair Stations . | . . . Recycling Units 4 | . 4 . Scanalyzers . | . . . Garrison Access . | . . . Terminal Hacks 9 | . 9 . Robot Analysis 5 | . 5 . Prototype ID Bank 2 | . 2 . Unreport Threat 2 | . 2 . Fabricator Hacks . | . . . Repair Station Hacks . | . . . Recycling Unit Hacks . | . . . Scanalyzer . | . . . Garrison Access Hacks . | . . . Unauthorized Hacks 8 | . 8 . Terminals 6 | . 6 . Botnet 6 | . 6 . Fabricators . | . . . Repair Stations . | . . . Recycling Units 2 | . 2 . Mask 2 | . 2 . Scanalyzers . | . . . Garrison Access . | . . . Data Cores Recovered . | . . . Used . | . . . Hacking Detections 6 | . 6 . Full Trace Events . | . . . Feedback Events . | . . . Feedback Blocked . | . . . Robot Schematics Acquired . | . . . Robots Built . | . . . Authchips . | . . . Time . | . . . Total Robot Build Rating . | . . . Part Schematics Acquired . | . . . Parts Built . | . . . Authchips . | . . . Time . | . . . Total Part Build Rating . | . . . Parts Repaired . | . . . Time . | . . . Parts Recycled . | . . . Recycled Matter . | . . . Retrieved Matter . | . . . Retrieved Components . | . . . Parts Scanalyzed . | . . . Part Schematics Acquired . | . . . Parts Damaged . | . . . Bothacking | -11 -10 -10 ------------ Run | Scr Mat Min Used RIF Installer . | . . . Robots Hacked . | . . . Non-combat . | . . . Combat . | . . . Robot Hacks Applied . | . . . Relay Couplers Released . | . . . Fabnet Peak Effective % . | . . . Robots Rewired . | . . . Allies Hacked . | . . . Hacks Repelled . | . . . Allies | -11 -10 -10 -------- Run | Scr Mat Min Total Allies 1 | . 1 . Largest Group 1 | . 1 1 Highest-Rated Group 59 | . 59 59 Highest-Rated Ally 59 | . 59 59 Total Orders . | . . . Ally Attacks 18 | . 9 9 Total Damage 281 | . 134 147 Kills 7 | . 4 3 Allies Corrupted . | . . . Allies Melted . | . . . Intel | -11 -10 -10 ------- Run | Scr Mat Min Robot Analysis Total 5 | . 5 . Derelict Logs Recovered . | . . . Drone Launches . | . . . Drone Recoveries . | . . . Exploration | -11 -10 -10 ------------- Run | Scr Mat Min Turns Passed 1250 | 82 938 230 Spaces Moved 1054 | 54 826 174 Core 1 | 1 . . Treads . | . . . Legs . | . . . Wheels 1053 | 53 826 174 Hover . | . . . Flight . | . . . Fastest Speed 50 | 50 95 95 Average Speed 96 | 99 96 95 Slowest Speed 100 | 100 100 95 Overloaded Moves . | . . . Propulsion Burnouts . | . . . Robots Hopped . | . . . Cave-ins Triggered . | . . . Exploration Rate (%) 45 | 5 99 32 Regions Visited 2 Branch Regions 1 Pre-discovered Areas . | . . . Known Exits Taken . | . . . Unknown Exits Taken 2 | 1 1 . Scrap Searched . | . . . Spaces Dug . | . . . Terrain Destroyed . | . . . Melee . | . . . Projectile . | . . . AOE . | . . . Terrain Rammed . | . . . Walls Destroyed . | . . . Machines Disabled . | . . . Actions | -11 -10 -10 --------- Run | Scr Mat Min Total 1223 | 74 941 208 Wait 75 | . 70 5 Move 1052 | 53 825 174 Hop . | . . . Pick Up 21 | 9 7 5 Fast Attach 11 | 7 4 . Attach 3 | 1 2 . Detach 2 | . 2 . Swap 4 | . 1 3 Drop 15 | 1 11 3 Fire 39 | 3 18 18 Melee . | . . . Ram 1 | . 1 . Kick . | . . . Crush . | . . . Escape Stasis . | . . . Rewire . | . . . Trap . | . . . Miscellaneous . | . . . Route ------- -11/Scrapyard -10/Materials (discovered 5 exits: [*Mat x3] / [*Min x2]) -10/Mines History --------- Turn | Location | Event 20 | -11/Scrapyard | Discovered new exit (range 15) 83 | -11/Scrapyard | Entered Materials 269 | -10/Materials | Discovered new exit (range 14) 303 | -10/Materials | Build established: Mutant 526 | -10/Materials | Discovered new exit (range 16) 624 | -10/Materials | Discovered new exit (range 6) 748 | -10/Materials | Build established: Scavenger-Mutant 844 | -10/Materials | Discovered new exit (range 13) 990 | -10/Materials | Discovered new exit (range 7) 1021 | -10/Materials | Entered Mines 1217 | -10/Mines | Assembled infested the area 1222 | -10/Mines | Assisted by a Guerilla fighting off Assembled 1245 | -10/Mines | Core integrity fell below 50% 1250 | -10/Mines | Core integrity fell below 20% 1251 | -10/Mines | Destroyed by D-53 Grenadier with Mini Grenade Launcher Last Messages --------------- 01237_ Acquired 1 matter. 01239_ Destroyed Asb. Hover Unit. 01241_ as-37682 destroyed. 01242_ as-37086 destroyed. 01242_ Switching to secondary target: as-23408. 01243_ Acquired 11 matter. 01244_ C-30 ARC bursts open, deploying its payload. 01244_ D-53 Grenadier unfolds itself. 01245_ U-05 Engineer destroyed. 01246_ Acquired 4 matter. 01246_ as-55162 destroyed. 01247_ as-23408 destroyed. 01249_ Acquired 1 matter. 01249_ as-03008 destroyed. 01249_ as-72275 destroyed. 01249_ as-43244 destroyed. 01249_ as-65595 destroyed. 01249_ Lgt. Assault Rifle destroyed. 01251_ as-37587 destroyed. 01251_ as-26431 destroyed. Map ----- +----------------------------------------------------+ | ????? #??????????????????????????????????????? | | ????? ##?????????????????????????????????????? | | ?????# #?????????????????????????????????????? | | # ?????# #?????????????????????????????????????? | | # #?????# #?????????????????????????????????????? | | # #????## #?????????????????????????????????????? | | # #??### ##????????????????????????????????????? | | # #### ##???????????????????????????????????? | | # #####???????????????????????????????? | | # #???????????????????????????????? | | ### #### #?????????????##????????????????? | | ??# ######??# #???????????? ###??????????????? | | ??# ##???????# #???????????? ???????????????? | | ??### #????????# #???????????? ????????????????? | | ????# #????????# #??????????? ????????????????? | | ????# #????????# #??????????? ?????????????????? | | ????# #????????# ######?????# ?????????????????? | | ???## #????????# #????? ??????????????????? | | ???# #????????###### #????? ???????????????????? | | ???# ##?????????????# ####? ???????????????????? | | ???# #??????????????# #? ??????##????? ?????? | | ???# #??????????????#### ## #####? ### ; ???? | | ???# #???????????????# a# ??? | | ???# #???????????????# %=%* ??? | | ???# #???????????###### d =a!%! a ??? | | ???# #???????????# % d@ @ %### #??? | | ???# #???????????# ### #???????????????? | | #### #??????????##%#?# ##???????????????? | | ## #?????????##%!#### #????????????????? | | ##????????#=**=### ## #???????????????? | | #???######!! #??????????????? | | #???#*= %! #??????????????? | | #######???#= = * ## ### ##??????????????? | | ??????????#%##### #### ##????????????????????? | | ??????????#%#??? #??### #?????????????????????? | | ###########[##?? #????? #?????????????????????? | | =!#?## ##????? ?????????????????????? | | #??####?????? ?????????????????????? | | """ """ """ #???????????? ?????????????????????? | | """ """ """ #???????????? ?????????????????????? | | """ """ """ #???????????? ?????????????????????? | | #???????????? ?????????????????????? | | """ """ """ #???????????? ?????????????????????? | | """ """ """ #???????????????????????????????????? | | """ """ """ #???????????????????????????????????? | | #???????????????????????????????????? | | """ """ """ #???????????????????????????????????? | | """ """ """ #???????????????????????????????????? | | """ """ """ #???????????????????????????????????? | | #???????????????????????????????????? | +----------------------------------------------------+ Best States ------------- Heat Dissipation 39 Energy Generation 10 Energy Capacity 250 Matter Stores 300 Matter Capacity 300 Sight Range 18 Terrain Scan Density 10 Resistance: KI 20 Resistance: TH 20 Resistance: EX 20 Resistance: EM 20 Resistance: I 20 Resistance: S 20 Resistance: P 20 Evasion (%) 41 Offensive Hacking 10 Item Schematics ----------------- None Robot Schematics ------------------ None Fabricated ------------ Nothing Alien Tech Used ----------------- None Achievements -------------- None Challenges ------------ None Player 2 | -11 -10 -10 ---------- Run | Scr Mat Min Slots Evolved . | . . . Power . | . . . Propulsion . | . . . Utility . | . . . Weapon . | . . . Parts Attached 9 | . 9 . Parts Lost 1 | . . 1 Damage Taken 567 | . 57 510 Core 123 | . . 123 Player 2/Cogmind (%) 48 | . . 61 Absorbed by Shields . | . . . Damage Inflicted 281 | . 134 147 Player 2/Cogmind (%) 30 | . 31 33 Combat Hostiles Destroyed 6 | . 4 2 Player 2/Cogmind (%) 35 | . 36 33 Game ------ Seed MatterElectronFacilitator Manual? 0 Play Time 00:16:30 Cumulative 37.8 hours Start 2022.03.27 @ 15:41:05 End 2022.03.27 @ 15:55:13 Sessions 1 Manual Loads 0 Difficulty Adventurer Special Mode AFD2020/Player2 Game No. 72 Rogue 46 Adventurer 26 Explorer 0 Win Type - Total 0 Types 0/0/0/0/0/0/0/0/0 Lore% 20 Gallery% 23 Achievement% 24 Wizard Run 0 Options --------- ASCII 0 Keyboard 0 Movement Mouse Keybinds 0 Fullscreen 1 Font 24/Terminus Map View 84x54 Tactical HUD 1 Map Filters NONE Filters NONE Steam 1 RUN: c2d0cb11-970d-4fd3-817f-877f67c35176